fUSD/lending_fUSD_20240419
["ID","MTS","AMOUNT","RATE_DAILY","PERIOD"]
[322904782,1713491447978,-500.0,0.00016438,2]
[322904783,1713491447987,-500.0,0.00016438,2]
[322904784,1713491447995,-500.0,0.00016438,2]
[322904785,1713491448004,-481.93928107,0.00016438,2]
[322904786,1713491448013,-500.0,0.00016438,2]
[322904787,1713491448021,-500.0,0.00016438,2]
[322904788,1713491448030,-500.0,0.00016438,2]
[322904789,1713491448039,-500.0,0.00016438,2]
[322904790,1713491448049,-500.0,0.00016438,2]
[322904791,1713491448058,-4475.54,0.00016438,2]
[322904792,1713491448068,-500.0,0.00016438,2]
[322904793,1713491448077,-500.0,0.00016438,2]
[322904794,1713491448086,-500.0,0.00016438,2]
[322904795,1713491448096,-1519.36,0.00016438,2]
[322904796,1713491448105,-500.0,0.00016438,2]
[322904797,1713491448114,-502.67,0.00016438,2]
[322904798,1713491448123,-1954.53,0.00016438,2]
[322904799,1713491448132,-500.0,0.00016438,2]
[322904800,1713491448142,-1596.36,0.00016438,2]
[322904801,1713491448151,-500.0,0.00016438,2]
[322904802,1713491448160,-538.3,0.00016438,2]
[322904803,1713491448170,-500.0,0.00016438,2]
[322904804,1713491448179,-500.0,0.00016438,2]
[322904805,1713491448190,-500.0,0.00016438,2]
[322904806,1713491448200,-2611.81,0.00016438,2]
[322904807,1713491448209,-793.4,0.00016438,2]
[322904808,1713491448223,-503.7935988,0.00016438,2]
[322904809,1713491448233,-502.39669654,0.00016438,2]
[322904810,1713491448244,-2000.29,0.00016438,2]
[322904811,1713491448254,-529.66,0.00016438,2]
[322904812,1713491448263,-1630.86,0.00016438,2]
[322904813,1713491448272,-500.0,0.00016438,2]
[322904814,1713491448282,-1152.44,0.00016438,2]
[322904815,1713491448291,-500.0,0.00016438,2]
[322904816,1713491448300,-663.22,0.00016438,2]
[322904817,1713491448310,-1804.16,0.00016438,2]
[322904818,1713491448320,-500.0,0.00016438,2]
[322904819,1713491448329,-2587.78,0.00016438,2]
[322904820,1713491448339,-972.28741033,0.00016438,2]
[322904821,1713491448348,-500.0,0.00016438,2]
[322904822,1713491448358,-500.0,0.00016438,2]
[322904823,1713491448368,-162.97479026,0.00016438,2]
[322904824,1713491448377,-500.0,0.00016438,2]
[322904825,1713491448387,-500.0,0.00016438,2]
[322904826,1713491448397,-500.0,0.00016438,2]
[322904827,1713491448406,-440.49416824,0.00016438,2]
[322904828,1713491448415,-765.73,0.00016438,2]
[322904829,1713491448425,-500.0,0.00016438,2]
[322904830,1713491448442,-501.24944382,0.00016438,2]
[322904831,1713491448451,-543.16441172,0.00016438,2]
[322904832,1713491448461,-500.0,0.00016438,2]
[322904833,1713491448477,-500.0,0.00016438,2]
[322904834,1713491448486,-3291.11,0.00016438,2]
[322904835,1713491448496,-2099.33,0.00016438,2]
[322904836,1713491448506,-1435.63,0.00016438,2]
[322904837,1713491448515,-500.0,0.00016438,2]
[322904838,1713491448524,-500.0,0.00016438,2]
[322904839,1713491448533,-500.0,0.00016438,2]
[322904840,1713491448542,-500.0,0.00016438,2]
[322904841,1713491448551,-1099.08,0.00016438,2]
[322904842,1713491448560,-555.10059383,0.00016438,2]
[322904843,1713491448570,-1896.44,0.00016438,2]
[322904844,1713491448579,-1890.69,0.00016438,2]
[322904845,1713491448588,-500.0,0.00016438,2]
[322904846,1713491448597,-500.0,0.00016438,2]
[322904847,1713491448606,-500.0,0.00016438,2]
[322904848,1713491448615,-500.0,0.00016438,2]
[322904849,1713491448625,-646.26,0.00016438,2]
[322904850,1713491448635,-2988.56,0.00016438,2]
[322904851,1713491448645,-500.0,0.00016438,2]
[322904852,1713491448654,-151.0,0.00016438,2]
[322904853,1713491448663,-500.05668564,0.00016438,2]
[322904854,1713491448673,-500.08753576,0.00016438,2]
[322904855,1713491448683,-151.0,0.00016438,2]
[322904856,1713491448693,-151.0,0.00016438,2]
[322904857,1713491448703,-502.54517415,0.00016438,2]
[322904858,1713491448716,-500.0,0.00016438,2]
[322904859,1713491448726,-151.0,0.00016438,2]
[322904860,1713491448736,-151.0,0.00016438,2]
[322904861,1713491448745,-151.0,0.00016438,2]
[322904862,1713491448754,-543.97915671,0.00016438,2]
[322904863,1713491448764,-151.0,0.00016438,2]
[322904864,1713491448774,-814.17,0.00016438,2]
[322904865,1713491448783,-500.0,0.00016438,2]
[322904866,1713491448793,-500.0,0.00016438,2]
[322904867,1713491448802,-500.0,0.00016438,2]
[322904868,1713491448812,-500.0,0.00016438,2]
[322904869,1713491448822,-5883.56,0.00016438,2]
[322904870,1713491448832,-151.0,0.00016438,2]
[322904871,1713491448841,-2322.4,0.00016438,2]
[322904872,1713491448851,-151.0,0.00016438,2]
[322904873,1713491448861,-172.8896,0.00016438,2]
[322904874,1713491448873,-764.54,0.00016438,2]
[322904875,1713491448882,-1748.48,0.00016438,2]
[322904876,1713491448892,-500.0,0.00016438,2]
[322904877,1713491448902,-6047.12,0.00016438,2]
[322904878,1713491448912,-500.0,0.00016438,2]
[322904879,1713491448921,-302.16066656,0.00016438,2]
[322904880,1713491448931,-2097.68,0.00016438,2]
[322904881,1713491448941,-500.0,0.00016438,2]
[322904882,1713491448951,-500.0,0.00016438,2]
[322904883,1713491448961,-3755.46,0.00016438,2]
[322904884,1713491448976,-3082.91,0.00016438,2]
[322904885,1713491448985,-500.0,0.00016438,2]
[322904886,1713491448995,-500.0,0.00016438,2]
[322904887,1713491449004,-500.0,0.00016438,2]
[322904888,1713491449014,-2015.57,0.00016438,2]
[322904889,1713491449023,-633.92,0.00016438,2]
[322904890,1713491449033,-500.0,0.00016438,2]
[322904891,1713491449042,-500.0,0.00016438,2]
[322904892,1713491449051,-500.0,0.00016438,2]
[322904893,1713491449060,-3225.62,0.00016438,2]
[322904894,1713491449070,-1901.52,0.00016438,2]
[322904895,1713491449079,-500.0,0.00016438,2]
[322904896,1713491449089,-500.0,0.00016438,2]
[322904897,1713491449099,-1338.76,0.00016438,2]
[322904898,1713491449108,-500.0,0.00016438,2]
[322904899,1713491449118,-531.27789739,0.00016438,2]
[322904900,1713491449127,-2612.32,0.00016438,2]
[322904901,1713491449137,-500.0,0.00016438,2]
[322904902,1713491449146,-500.17393446,0.00016438,2]
[322904903,1713491449156,-500.0,0.00016438,2]
[322904904,1713491449164,-500.0,0.00016438,2]
[322904905,1713491449173,-500.0,0.00016438,2]
[322904906,1713491449183,-500.0,0.00016438,2]
[322904907,1713491449191,-1126.96,0.00016438,2]
[322904908,1713491449201,-387.70720324,0.00016438,2]
[322904909,1713491449210,-804.95,0.00016438,2]
[322904910,1713491449223,-515.25,0.00016438,2]
[322904911,1713491449233,-1733.13,0.00016438,2]
[322904912,1713491449242,-500.0,0.00016438,2]
[322904913,1713491449251,-500.0,0.00016438,2]
[322904914,1713491449261,-500.0,0.00016438,2]
[322904915,1713491449270,-500.0,0.00016438,2]
[322904916,1713491449281,-1733.06,0.00016438,2]
[322904917,1713491449290,-4735.31,0.00016438,2]
[322904918,1713491449299,-587.35,0.00016438,2]
[322904919,1713491449308,-1182.52,0.00016438,2]
[322904920,1713491449318,-500.0,0.00016438,2]
[322904921,1713491449327,-500.0,0.00016438,2]
[322904922,1713491449336,-500.0,0.00016438,2]
[322904923,1713491449345,-959.55,0.00016438,2]
[322904924,1713491449354,-4540.13,0.00016438,2]
[322904925,1713491449363,-500.0,0.00016438,2]
[322904926,1713491449372,-500.0,0.00016438,2]
[322904927,1713491449381,-1084.66,0.00016438,2]
[322904928,1713491449391,-500.0,0.00016438,2]
[322904929,1713491449400,-500.0,0.00016438,2]
[322904930,1713491449409,-500.0,0.00016438,2]
[322904931,1713491449418,-1340.94,0.00016438,2]
[322904932,1713491449427,-1698.43,0.00016438,2]
[322904933,1713491449436,-776.84,0.00016438,2]
[322904934,1713491449445,-500.0,0.00016438,2]
[322904935,1713491449454,-2381.65,0.00016438,2]
[322904936,1713491449469,-1515.07,0.00016438,2]
[322904937,1713491449479,-2049.09,0.00016438,2]
[322904938,1713491449488,-935.72,0.00016438,2]
[322904939,1713491449497,-516.67885092,0.00016438,2]
[322904940,1713491449507,-500.0,0.00016438,2]
[322904941,1713491449516,-500.0,0.00016438,2]
[322904942,1713491449525,-873.01,0.00016438,2]
[322904943,1713491449534,-500.0,0.00016438,2]
[322904944,1713491449543,-1154.71,0.00016438,2]
[322904945,1713491449553,-2859.8,0.00016438,2]
[322904946,1713491449563,-6214.41,0.00016438,2]
[322904947,1713491449572,-1422.42,0.00016438,2]
[322904948,1713491449582,-2107.57,0.00016438,2]
[322904949,1713491449591,-787.39,0.00016438,2]
[322904950,1713491449600,-566.5,0.00016438,2]
[322904951,1713491449609,-500.0,0.00016438,2]
[322904952,1713491449618,-813.06,0.00016438,2]
[322904953,1713491449627,-501.03893634,0.00016438,2]
[322904954,1713491449637,-1233.04,0.00016438,2]
[322904955,1713491449646,-500.0,0.00016438,2]
[322904956,1713491449655,-1470.16,0.00016438,2]
[322904957,1713491449664,-500.0,0.00016438,2]
[322904958,1713491449673,-500.0,0.00016438,2]
[322904959,1713491449683,-954.19,0.00016438,2]
[322904960,1713491449692,-2069.45,0.00016438,2]
[322904961,1713491449701,-504.08974197,0.00016438,2]
[322904962,1713491449711,-500.0,0.00016438,2]
[322904963,1713491449725,-2070.22,0.00016438,2]
[322904964,1713491449734,-500.0,0.00016438,2]
[322904965,1713491449743,-500.0,0.00016438,2]
[322904966,1713491449753,-3367.47,0.00016438,2]
[322904967,1713491449762,-500.74218247,0.00016438,2]
[322904968,1713491449771,-2857.74,0.00016438,2]
[322904969,1713491449781,-500.0,0.00016438,2]
[322904970,1713491449790,-1027.78,0.00016438,2]
[322904971,1713491449800,-508.6,0.00016438,2]
[322904972,1713491449809,-500.0,0.00016438,2]
[322904973,1713491449818,-1417.12,0.00016438,2]
[322904974,1713491449828,-1958.72,0.00016438,2]
[322904975,1713491449838,-500.0,0.00016438,2]
[322904976,1713491449847,-500.0,0.00016438,2]
[322904977,1713491449856,-4639.74,0.00016438,2]
[322904978,1713491449866,-994.83,0.00016438,2]
[322904979,1713491449879,-500.0,0.00016438,2]
[322904980,1713491449888,-500.0,0.00016438,2]
[322904981,1713491449898,-500.0,0.00016438,2]
[322904982,1713491449907,-500.0,0.00016438,2]
[322904983,1713491449918,-500.0,0.00016438,2]
[322904984,1713491449927,-562.07,0.00016438,2]
[322904985,1713491449936,-500.0,0.00016438,2]
[322904986,1713491449945,-500.0,0.00016438,2]
[322904987,1713491449955,-953.29,0.00016438,2]
[322904988,1713491449968,-500.0,0.00016438,2]
[322904989,1713491449978,-1754.15,0.00016438,2]
[322904990,1713491449987,-875.46,0.00016438,2]
[322904991,1713491449997,-6094.4,0.00016438,2]
[322904992,1713491450006,-1101.88,0.00016438,2]
[322904993,1713491450016,-500.0,0.00016438,2]
[322904994,1713491450025,-994.72,0.00016438,2]
[322904995,1713491450035,-1661.89,0.00016438,2]
[322904996,1713491450044,-504.31,0.00016438,2]
[322904997,1713491450053,-1863.95,0.00016438,2]
[322904998,1713491450063,-500.0,0.00016438,2]
[322904999,1713491450072,-55847.77,0.00016438,2]
[322905000,1713491450082,-507.71768919,0.00016438,2]
[322905001,1713491450091,-563.14,0.00016438,2]
[322905002,1713491450100,-500.0,0.00016438,2]
[322905003,1713491450109,-2045.87,0.00016438,2]
[322905004,1713491450118,-500.0,0.00016438,2]
[322905005,1713491450127,-2774.58,0.00016438,2]
[322905006,1713491450136,-500.0,0.00016438,2]
[322905007,1713491450145,-500.0,0.00016438,2]
[322905008,1713491450154,-679.26,0.00016438,2]
[322905009,1713491450164,-500.0,0.00016438,2]
[322905010,1713491450173,-500.0,0.00016438,2]
[322905011,1713491450182,-500.96874411,0.00016438,2]
[322905012,1713491450191,-701.87,0.00016438,2]
[322905013,1713491450202,-500.0,0.00016438,2]
[322905014,1713491450211,-500.0,0.00016438,2]
[322905015,1713491450224,-500.0,0.00016438,2]
[322905016,1713491450234,-1193.82,0.00016438,2]
[322905017,1713491450243,-500.87,0.00016438,2]
[322905018,1713491450251,-917.39,0.00016438,2]
[322905019,1713491450262,-748.3,0.00016438,2]
[322905020,1713491450277,-500.0,0.00016438,2]
[322905021,1713491450286,-5459.57,0.00016438,2]
[322905022,1713491450296,-500.0,0.00016438,2]
[322905023,1713491450306,-1085.85,0.00016438,2]
[322905024,1713491450315,-500.0,0.00016438,2]
[322905025,1713491450325,-1994.64,0.00016438,2]
[322905026,1713491450334,-500.0,0.00016438,2]
[322905027,1713491450343,-946.5,0.00016438,2]
[322905028,1713491450353,-5434.49,0.00016438,2]
[322905029,1713491450362,-500.0,0.00016438,2]
[322905030,1713491450372,-2116.37,0.00016438,2]
[322905031,1713491450381,-473.05916633,0.00016438,2]
[322905032,1713491450390,-4152.81,0.00016438,2]
[322905033,1713491450399,-500.0,0.00016438,2]
[322905034,1713491450409,-2679.05,0.00016438,2]
[322905035,1713491450417,-500.95530415,0.00016438,2]
[322905036,1713491450446,-500.0,0.00016438,2]
[322905037,1713491450455,-1123.19,0.00016438,2]
[322905038,1713491450466,-500.0,0.00016438,2]
[322905039,1713491450477,-536.08,0.00016438,2]
[322905040,1713491450486,-500.0,0.00016438,2]
[322905041,1713491450495,-500.0,0.00016438,2]
[322905042,1713491450505,-1821.74,0.00016438,2]
[322905043,1713491450514,-879.82,0.00016438,2]
[322905044,1713491450523,-3203.26,0.00016438,2]
[322905045,1713491450533,-5458.38,0.00016438,2]
[322905046,1713491450542,-518.22935953,0.00016438,2]
[322905047,1713491450550,-500.0,0.00016438,2]
[322905048,1713491450559,-1127.32,0.00016438,2]
[322905049,1713491450569,-1652.06,0.00016438,2]
[322905050,1713491450578,-2395.94,0.00016438,2]
[322905051,1713491450587,-1097.9,0.00016438,2]
[322905052,1713491450596,-500.0,0.00016438,2]
[322905053,1713491450605,-500.0,0.00016438,2]
[322905054,1713491450615,-2317.02,0.00016438,2]
[322905055,1713491450625,-500.0,0.00016438,2]
[322905056,1713491450634,-501.35717513,0.00016438,2]
[322905057,1713491450643,-2131.32,0.00016438,2]
[322905058,1713491450652,-995.68,0.00016438,2]
[322905059,1713491450662,-1400.22,0.00016438,2]
[322905060,1713491450671,-1039.28,0.00016438,2]
[322905061,1713491450680,-923.12,0.00016438,2]
[322905062,1713491450689,-1536.92,0.00016438,2]
[322905063,1713491450698,-500.0,0.00016438,2]
[322905064,1713491450707,-1638.16,0.00016438,2]
[322905065,1713491450719,-500.0,0.00016438,2]
[322905066,1713491450728,-2870.21,0.00016438,2]
[322905067,1713491450742,-500.0,0.00016438,2]
[322905068,1713491450751,-500.0,0.00016438,2]
[322905069,1713491450761,-1596.23,0.00016438,2]
[322905070,1713491450771,-1937.13,0.00016438,2]
[322905071,1713491450780,-866.44,0.00016438,2]
[322905072,1713491450789,-500.0,0.00016438,2]
[322905073,1713491450798,-1740.99,0.00016438,2]
[322905074,1713491450807,-500.0,0.00016438,2]
[322905075,1713491450817,-500.0,0.00016438,2]
[322905076,1713491450826,-500.0,0.00016438,2]
[322905077,1713491450835,-616.1,0.00016438,2]
[322905078,1713491450844,-500.0,0.00016438,2]
[322905079,1713491450853,-1250.47,0.00016438,2]
[322905080,1713491450864,-500.0,0.00016438,2]
[322905081,1713491450874,-2803.57,0.00016438,2]
[322905082,1713491450886,-500.0,0.00016438,2]
[322905083,1713491450896,-500.0,0.00016438,2]
[322905084,1713491450906,-500.0,0.00016438,2]
[322905085,1713491450917,-2967.14,0.00016438,2]
[322905086,1713491450927,-500.0,0.00016438,2]
[322905087,1713491450938,-679.43,0.00016438,2]
[322905088,1713491450949,-1334.25,0.00016438,2]
[322905089,1713491450959,-500.0,0.00016438,2]
[322905090,1713491450973,-1204.75,0.00016438,2]
[322905091,1713491450983,-572.05,0.00016438,2]
[322905092,1713491450993,-1501.98,0.00016438,2]
[322905093,1713491451003,-1656.92,0.00016438,2]
[322905094,1713491451014,-500.0,0.00016438,2]
[322905095,1713491451024,-500.0,0.00016438,2]
[322905096,1713491451034,-3955.36,0.00016438,2]
[322905097,1713491451044,-1186.76,0.00016438,2]
[322905098,1713491451053,-1653.46,0.00016438,2]
[322905099,1713491451063,-500.0,0.00016438,2]
[322905100,1713491451073,-500.0,0.00016438,2]
[322905101,1713491451083,-2744.95,0.00016438,2]
[322905102,1713491451093,-981.21,0.00016438,2]
[322905103,1713491451103,-500.0,0.00016438,2]
[322905104,1713491451113,-3351.73,0.00016438,2]
[322905105,1713491451123,-500.0,0.00016438,2]
[322905106,1713491451133,-500.0,0.00016438,2]
[322905107,1713491451143,-500.0,0.00016438,2]
[322905108,1713491451153,-674.4,0.00016438,2]
[322905109,1713491451163,-500.0,0.00016438,2]
[322905110,1713491451173,-4903.67,0.00016438,2]
[322905111,1713491451183,-506.43196753,0.00016438,2]
[322905112,1713491451193,-500.0,0.00016438,2]
[322905113,1713491451202,-500.0,0.00016438,2]
[322905114,1713491451212,-501.15279836,0.00016438,2]
[322905115,1713491451226,-500.0,0.00016438,2]
[322905116,1713491451236,-500.0,0.00016438,2]
[322905117,1713491451247,-500.0,0.00016438,2]
[322905118,1713491451257,-843.79,0.00016438,2]
[322905119,1713491451267,-502.58,0.00016438,2]
[322905120,1713491451276,-500.0,0.00016438,2]
[322905121,1713491451286,-500.0,0.00016438,2]
[322905122,1713491451295,-299.97548392,0.00016438,2]
[322905123,1713491451305,-500.0,0.00016438,2]
[322905124,1713491451314,-577.52,0.00016438,2]
[322905125,1713491451324,-500.0,0.00016438,2]
[322905126,1713491451334,-500.0,0.00016438,2]
[322905127,1713491451344,-680.72,0.00016438,2]
[322905128,1713491451355,-1480.47,0.00016438,2]
[322905129,1713491451365,-500.0,0.00016438,2]
[322905130,1713491451374,-20325.04,0.00016438,2]
[322905131,1713491451384,-901.21,0.00016438,2]
[322905132,1713491451394,-1121.89,0.00016438,2]
[322905133,1713491451403,-169.15414241,0.00016438,2]
[322905134,1713491451412,-2415.08,0.00016438,2]
[322905135,1713491451422,-985.98,0.00016438,2]
[322905136,1713491451431,-500.0,0.00016438,2]
[322905137,1713491451442,-1294.79,0.00016438,2]
[322905138,1713491451452,-711.61,0.00016438,2]
[322905139,1713491451461,-2343.03,0.00016438,2]
[322905140,1713491451473,-500.0,0.00016438,2]
[322905141,1713491451483,-500.0,0.00016438,2]
[322905142,1713491451493,-500.0,0.00016438,2]
[322905143,1713491451502,-500.0,0.00016438,2]
[322905144,1713491451512,-706.2,0.00016438,2]
[322905145,1713491451522,-358.23207354,0.00016438,2]
[322905146,1713491452825,-1780.19792646,0.00016438,2]
[322905147,1713491452836,-500.0,0.00016438,2]
[322905148,1713491452845,-500.0,0.00016438,2]
[322905149,1713491452856,-500.0,0.00016438,2]
[322905150,1713491452866,-6003.84,0.00016438,2]
[322905151,1713491452875,-970.45,0.00016438,2]
[322905152,1713491452889,-6003.84,0.00016438,2]
[322905153,1713491452899,-6003.84,0.00016438,2]
[322905154,1713491452909,-14723.67,0.00016438,2]
[322905155,1713491452918,-6003.84,0.00016438,2]
[322905156,1713491452929,-6218.46,0.00016438,2]
[322905157,1713491452939,-500.35535326,0.00016438,2]
[322905158,1713491452949,-260.84441308,0.00016438,2]
[322905159,1713491452959,-738.94,0.00016438,2]
[322905160,1713491452971,-1106.1,0.00016438,2]
[322905161,1713491452980,-569.72,0.00016438,2]
[322905162,1713491452989,-712.15,0.00016438,2]
[322905163,1713491452998,-500.0,0.00016438,2]
[322905164,1713491453009,-500.0,0.00016438,2]
[322905165,1713491453020,-776.3,0.00016438,2]
[322905166,1713491453029,-1385.33,0.00016438,2]
[322905167,1713491453039,-3009.37,0.00016438,2]
[322905168,1713491453048,-7431.06,0.00016438,2]
[322905169,1713491453057,-501.19129643,0.00016438,2]
[322905170,1713491453067,-1161.72,0.00016438,2]
[322905171,1713491453076,-1078.36,0.00016438,2]
[322905172,1713491453086,-500.0,0.00016438,2]
[322905173,1713491453095,-2093.56,0.00016438,2]
[322905174,1713491453105,-288.03421983,0.00016438,2]
[322905175,1713491453115,-1629.26,0.00016438,2]
[322905176,1713491453124,-500.0,0.00016438,2]
[322905177,1713491453133,-3758.99,0.00016438,2]
[322905178,1713491453143,-38117.9,0.00016438,2]
[322905179,1713491453152,-500.0,0.00016438,2]
[322905180,1713491453161,-500.0,0.00016438,2]
[322905181,1713491453170,-3053.93,0.00016438,2]
[322905182,1713491453180,-1007.7,0.00016438,2]
[322905183,1713491453189,-500.0,0.00016438,2]
[322905184,1713491453199,-1603.44,0.00016438,2]
[322905185,1713491453209,-500.0,0.00016438,2]
[322905186,1713491453219,-6003.84,0.00016438,2]
[322905187,1713491453229,-6003.84,0.00016438,2]
[322905188,1713491453238,-6003.84,0.00016438,2]
[322905189,1713491453248,-6003.84,0.00016438,2]
[322905190,1713491453257,-6003.84,0.00016438,2]
[322905191,1713491453267,-500.0,0.00016438,2]
[322905192,1713491453277,-500.0,0.00016438,2]
[322905193,1713491453286,-500.0,0.00016438,2]
[322905194,1713491453296,-500.0,0.00016438,2]
[322905195,1713491453305,-96114.18,0.00016438,2]
[322905196,1713491453315,-261.97227436,0.00016438,2]
[322905197,1713491453325,-500.0,0.00016438,2]
[322905198,1713491453334,-500.0,0.00016438,2]
[322905199,1713491453343,-6200.73,0.00016438,2]
[322905200,1713491453353,-500.0,0.00016438,2]
[322905201,1713491453363,-500.0,0.00016438,2]
[322905202,1713491453372,-1328.89,0.00016438,2]
[322905203,1713491453382,-500.0,0.00016438,2]
[322905204,1713491453391,-502.35028546,0.00016438,2]
[322905205,1713491453400,-28308.43,0.00016438,2]
[322905206,1713491453410,-718.35,0.00016438,2]
[322905207,1713491453419,-1152.75,0.00016438,2]
[322905208,1713491453429,-500.0,0.00016438,2]
[322905209,1713491453438,-500.0,0.00016438,2]
[322905210,1713491453447,-3798.56,0.00016438,2]
[322905211,1713491453456,-981.17,0.00016438,2]
[322905212,1713491453467,-500.0,0.00016438,2]
[322905213,1713491453476,-500.0,0.00016438,2]
[322905214,1713491453485,-500.0,0.00016438,2]
[322905215,1713491453494,-985.79,0.00016438,2]
[322905216,1713491453504,-1742.65,0.00016438,2]
[322905217,1713491453513,-9733.62,0.00016438,2]
[322905218,1713491453522,-500.0,0.00016438,2]
[322905219,1713491453531,-500.0,0.00016438,2]
[322905220,1713491453541,-500.0,0.00016438,2]
[322905221,1713491453550,-500.0,0.00016438,2]
[322905222,1713491453559,-673.04,0.00016438,2]
[322905223,1713491453569,-15040.78799441,0.00016438,2]
[322905224,1713491453615,-341.20200559,0.00016438,2]
[322905225,1713491453624,-500.0,0.00016438,2]
[322905226,1713491453634,-1321.23,0.00016438,2]
[322905227,1713491453643,-761.62,0.00016438,2]
[322905228,1713491453652,-500.0,0.00016438,2]
[322905229,1713491453661,-553.28,0.00016438,2]
[322905230,1713491453670,-500.0,0.00016438,2]
[322905231,1713491453679,-500.0,0.00016438,2]
[322905232,1713491453689,-500.0,0.00016438,2]
[322905233,1713491453698,-500.0,0.00016438,2]
[322905234,1713491453708,-500.0,0.00016438,2]
[322905235,1713491453720,-500.0,0.00016438,2]
[322905236,1713491453729,-500.0,0.00016438,2]
[322905237,1713491453737,-500.0,0.00016438,2]
[322905238,1713491453747,-1274.61,0.00016438,2]
[322905239,1713491453756,-500.0,0.00016438,2]
[322905240,1713491453765,-2747.12,0.00016438,2]
[322905241,1713491453775,-2252.87,0.00016438,2]
[322905242,1713491453786,-11238.23741585,0.00016438,2]
[322905243,1713491453798,-1167.65999999,0.00016438,2]
[322905244,1713491453823,-3112.47258416,0.00016438,2]
[322905245,1713491453833,-2839.64,0.00016438,2]
[322905246,1713491453842,-868.8,0.00016438,2]
[322905247,1713491453852,-500.0,0.00016438,2]
[322905248,1713491453862,-6479.32,0.00016438,2]
[322905249,1713491453872,-500.0,0.00016438,2]
[322905250,1713491453884,-500.0,0.00016438,2]
[322905251,1713491453896,-4844.79,0.00016438,2]
[322905252,1713491453906,-533.38,0.00016438,2]
[322905253,1713491453916,-500.0,0.00016438,2]
[322905254,1713491453926,-1951.0,0.00016438,2]
[322905255,1713491453935,-524.36,0.00016438,2]
[322905256,1713491453945,-3097.72,0.00016438,2]
[322905257,1713491453954,-314.27616313,0.00016438,2]
[322905258,1713491453964,-500.0,0.00016438,2]
[322905259,1713491453975,-754.66,0.00016438,2]
[322905260,1713491453984,-500.0,0.00016438,2]
[322905261,1713491453993,-505.67,0.00016438,2]
[322905262,1713491454002,-500.0,0.00016438,2]
[322905263,1713491454013,-500.0,0.00016438,2]
[322905264,1713491454022,-802.37731734,0.00016438,2]
[322905265,1713491454049,-1766.52268266,0.00016438,2]
[322905266,1713491454058,-500.0,0.00016438,2]
[322905267,1713491454068,-6818.79,0.00016438,2]
[322905268,1713491454077,-500.0,0.00016438,2]
[322905269,1713491454086,-500.0,0.00016438,2]
[322905270,1713491454097,-3116.4588643,0.00016438,2]
[322905271,1713491454136,-267.24984383,0.00016438,2]
[322905272,1713491456283,-155.06593747,0.00016436,2]
[322905273,1713491456294,-2789.93406244,0.00016438,2]
[322905274,1713491456306,-271.15420592,0.00016438,2]
[322905275,1713491456360,-329.58302351,0.00016438,2]
[322905276,1713491456370,-408.41097649,0.00016438,2]
[322905277,1713491456382,-317.44902351,0.00016438,2]
[322905278,1713491456392,-855.87412302,0.00016438,2]
[322905279,1713491456404,-2156.80709083,0.00016438,2]
[322905280,1713491456419,-793.86590072,0.00016438,2]
[322905281,1713491456458,-18461.35288543,0.00016438,2]